bitfinex/quotes_BTCUSD_20251224
["timestamp","ask_amount","ask_price","bid_price","bid_amount"]
[1766560051261,0.01149042,87029.0,87019.0,0.13436]
[1766560051971,0.01149055,87028.0,87019.0,0.13436]
[1766560052173,0.01152,87030.0,87022.0,0.12427]
[1766560052371,0.02301029,87030.0,87022.0,0.12427]
[1766560052629,0.01152,87030.0,87022.0,0.12427]
[1766560053278,0.03636364,87034.0,87024.0,0.12427]
[1766560053489,0.01152,87034.0,87024.0,0.12427]
[1766560053693,0.01152,87034.0,87024.0,0.13576108]
[1766560053896,0.01148949,87036.0,87026.0,0.12427]
[1766560054281,0.04785274,87039.0,87025.0,0.01152]
[1766560054483,0.01148936,87037.0,87028.0,0.12427]
[1766560055603,0.01148923,87038.0,87028.0,0.12427]
[1766560055997,0.01148936,87037.0,87028.0,0.12427]
[1766560057094,0.04248495,87044.0,87038.0,0.1198]
[1766560057307,0.01148844,87044.0,87038.0,0.1198]
[1766560058264,0.01148831,87045.0,87038.0,0.1198]
[1766560059273,0.01148844,87044.0,87038.0,0.1198]
[1766560059757,0.01148831,87045.0,87038.0,0.1198]
[1766560060403,0.01148844,87044.0,87038.0,0.1198]
[1766560060613,0.01148831,87045.0,87038.0,0.1198]
[1766560061784,0.01148791,87048.0,87038.0,0.1198]
[1766560062409,0.01148831,87045.0,87038.0,0.1198]
[1766560063186,0.01148817,87046.0,87038.0,0.1198]
[1766560063648,0.02300778,87049.0,87038.0,0.1198]
[1766560063824,0.02300778,87049.0,87038.0,0.13128923]
[1766560064161,0.01148791,87048.0,87038.0,0.1198]
[1766560064322,0.02300778,87049.0,87038.0,0.13128923]
[1766560064555,0.02300778,87049.0,87038.0,0.1198]
[1766560065138,0.01148791,87048.0,87038.0,0.1198]
[1766560065762,0.01148804,87047.0,87038.0,0.1198]
[1766560066254,0.01152,87049.0,87040.0,0.01148897]
[1766560066666,0.01152,87049.0,87041.0,0.1198]
[1766560066870,0.01148725,87053.0,87043.0,0.1198]
[1766560067066,0.01148738,87052.0,87043.0,0.1198]
[1766560068630,0.01148751,87051.0,87043.0,0.1198]
[1766560068835,0.01152,87053.0,87043.0,0.13128857]
[1766560068986,0.01152,87053.0,87051.0,0.00055]
[1766560069415,0.01152,87053.0,87048.0,0.13128791]
[1766560069416,0.01152,87053.0,87048.0,0.1198]
[1766560070442,0.01152,87056.0,87048.0,0.1198]
[1766560070601,0.05743099,87061.0,87048.0,0.1198]
[1766560070602,0.01148633,87060.0,87048.0,0.1198]
[1766560070803,0.0001069,87060.0,87051.0,0.01148751]
[1766560071147,0.0001069,87060.0,87052.0,0.1198]
[1766560073277,0.0001069,87060.0,87052.0,0.13128738]
[1766560073779,0.0001069,87060.0,87052.0,0.1198]
[1766560073927,0.0001069,87060.0,87052.0,0.13128738]
[1766560075408,0.0001069,87060.0,87055.0,0.01148699]
[1766560075644,0.0001069,87060.0,87055.0,0.02300699]
[1766560075890,0.0001069,87060.0,87055.0,0.01152]
[1766560076848,0.0001069,87060.0,87046.0,0.1198]
[1766560077067,0.05743627,87053.0,87043.0,0.0001]
[1766560077324,0.05743627,87053.0,87036.0,0.07583205]
[1766560077325,0.05798461,87055.0,87036.0,0.01838256]
[1766560077525,0.01148897,87040.0,87025.0,0.1198]
[1766560077695,0.01148976,87034.0,87025.0,0.01152]
[1766560078240,0.01148923,87038.0,87027.0,0.01149068]
[1766560078446,0.01152,87039.0,87029.0,0.01149042]
[1766560078572,0.01152,87039.0,87030.0,0.01149029]
[1766560078981,0.01152,87039.0,87031.0,0.01149015]
[1766560079182,0.01152,87039.0,87033.0,0.01148989]
[1766560079381,0.01152,87039.0,87030.0,0.01149029]
[1766560079624,0.01152,87039.0,87031.0,0.01149015]
[1766560080063,0.01152,87039.0,87030.0,0.01149029]
[1766560080240,0.01152,87039.0,87029.0,0.13722042]
[1766560080404,0.01152,87039.0,87030.0,0.01149029]
[1766560081076,0.01152,87039.0,87029.0,0.13722042]
[1766560081276,0.0230091,87039.0,87028.0,0.02301055]
[1766560082257,0.01152,87039.0,87029.0,0.01149042]
[1766560083112,0.0230091,87039.0,87028.0,0.02301055]
[1766560084132,0.01152,87039.0,87029.0,0.01149042]
[1766560085349,0.01152,87039.0,87030.0,0.01149029]
[1766560085549,0.01152,87039.0,87031.0,0.01149015]
[1766560085740,0.01152,87039.0,87030.0,0.01149029]
[1766560086668,0.01152,87039.0,87031.0,0.01149015]
[1766560088593,0.01152,87039.0,87030.0,0.01149029]
[1766560088850,0.01152,87039.0,87029.0,0.01149042]
[1766560089908,0.01152,87039.0,87030.0,0.01149029]
[1766560090157,0.01152,87039.0,87035.0,0.01148963]
[1766560090363,0.01152,87039.0,87034.0,0.01148976]
[1766560090778,0.01152,87039.0,87035.0,0.01148963]
[1766560091001,0.01152,87039.0,87034.0,0.01148976]
[1766560091199,0.01152,87039.0,87033.0,0.01148989]
[1766560091418,0.01152,87039.0,87034.0,0.01148976]
[1766560094081,0.01152,87039.0,87035.0,0.01148963]
[1766560096755,0.01152,87039.0,87033.0,0.01148989]
[1766560096958,0.01152,87039.0,87034.0,0.01148976]
[1766560097160,0.01152,87039.0,87033.0,0.01148989]
[1766560097364,0.01152,87039.0,87034.0,0.01148976]
[1766560097970,0.01152,87039.0,87033.0,0.01148989]
[1766560098176,0.01152,87039.0,87034.0,0.01148976]
[1766560099331,0.01152,87039.0,87035.0,0.01148963]
[1766560099821,0.01152,87039.0,87033.0,0.01148989]
[1766560099974,0.01152,87039.0,87034.0,0.01148976]
[1766560100188,0.01152,87042.0,87038.0,0.01148923]
[1766560100538,0.01152,87042.0,87038.0,0.13721923]
[1766560100729,0.01152,87048.0,87041.0,0.01148883]
[1766560100884,0.01152,87048.0,87041.0,0.12573]
[1766560101086,0.01152,87048.0,87041.0,0.125181]
[1766560101693,0.01152,87048.0,87041.0,0.13666983]
[1766560102092,0.01152,87048.0,87041.0,0.125181]
[1766560102360,0.01152,87048.0,87041.0,0.13666983]
[1766560102547,0.01152,87048.0,87042.0,0.0114887]
[1766560102752,0.01152,87048.0,87042.0,0.12573]
[1766560103235,0.01152,87048.0,87040.0,0.01148897]
[1766560103746,0.01152,87050.0,87040.0,0.01148897]
[1766560104868,0.06895849,87050.0,87037.0,0.01148936]
[1766560105078,0.01152,87050.0,87037.0,0.13721936]
[1766560105287,0.01148778,87049.0,87037.0,0.13721936]
[1766560105762,0.02300765,87050.0,87038.0,0.01148923]
[1766560105991,0.01152,87050.0,87039.0,0.0114891]
[1766560106211,0.02300765,87050.0,87039.0,0.0114891]
[1766560107132,0.01152,87050.0,87040.0,0.01148897]
[1766560108130,0.45104661,87050.0,87040.0,0.01148897]
[1766560108316,0.45104661,87050.0,87039.0,0.0114891]
[1766560109083,0.45104661,87050.0,87040.0,0.01148897]
[1766560109264,0.46253426,87050.0,87039.0,0.0114891]
[1766560109464,0.01148778,87049.0,87037.0,0.13721936]
[1766560109688,0.01148844,87044.0,87037.0,0.12573]
[1766560109912,0.05743891,87049.0,87037.0,0.12518]
[1766560110114,0.01148778,87049.0,87037.0,0.13666936]
[1766560110491,0.01148791,87048.0,87037.0,0.13666936]
[1766560111065,0.01148778,87049.0,87037.0,0.13666936]
[1766560111592,0.01148804,87047.0,87037.0,0.12518]
[1766560111996,0.01148791,87048.0,87037.0,0.13666936]
[1766560112405,0.01148804,87047.0,87037.0,0.12518]
[1766560113145,0.01148791,87048.0,87037.0,0.13666936]
[1766560113583,0.01148804,87047.0,87037.0,0.12518]
[1766560115102,0.01148791,87048.0,87037.0,0.13666936]
[1766560115636,0.01148817,87046.0,87037.0,0.10977725]
[1766560115911,0.01148831,87045.0,87036.0,0.01152]
[1766560116252,0.01148897,87040.0,87031.0,0.12741]
[1766560116476,0.01148883,87041.0,87034.0,0.01152]
[1766560116665,0.01148897,87040.0,87034.0,0.01152]
[1766560117638,0.01148897,87040.0,87026.0,0.04598445]
[1766560117639,0.0114891,87039.0,87026.0,0.04598445]
[1766560117846,0.01148976,87034.0,87024.0,0.12741]
[1766560118071,0.01148976,87034.0,87025.0,0.01152]
[1766560118472,0.01148963,87035.0,87025.0,0.01152]
[1766560119599,0.01148976,87034.0,87025.0,0.01152]
[1766560119787,0.01148949,87036.0,87025.0,0.01152]
[1766560119961,0.01148976,87034.0,87025.0,0.01152]
[1766560120374,0.01148989,87033.0,87025.0,0.01152]
[1766560120734,0.01148976,87034.0,87025.0,0.01152]
[1766560121662,0.01148976,87034.0,87025.0,0.01162686]
[1766560123559,0.01148989,87033.0,87025.0,0.01162686]
[1766560123783,0.01148976,87034.0,87025.0,0.01162686]
[1766560123990,0.01148963,87035.0,87025.0,0.01162686]
[1766560124163,0.01148949,87036.0,87025.0,0.02311781]
[1766560124868,0.01148963,87035.0,87025.0,0.01162686]
[1766560125478,0.01148976,87034.0,87025.0,0.01162686]
[1766560125907,0.01152,87036.0,87025.0,0.01162686]
[1766560126070,0.01148963,87035.0,87025.0,0.01162686]
[1766560126270,0.02300949,87036.0,87025.0,0.02311781]
[1766560126470,0.01152,87036.0,87026.0,0.01149081]
[1766560126726,0.01152,87036.0,87025.0,0.02311781]
[1766560126886,0.01152,87036.0,87026.0,0.01149081]
[1766560127219,0.01152,87036.0,87025.0,0.02311781]
[1766560127425,0.01152,87036.0,87026.0,0.01149081]
[1766560128429,0.02300949,87036.0,87025.0,0.02311781]
[1766560129780,0.01152,87037.0,87026.0,0.01149081]
[1766560130235,0.01148949,87036.0,87025.0,0.02311781]
[1766560130557,0.01152,87037.0,87025.0,0.02311781]
[1766560130558,0.02300936,87037.0,87025.0,0.01162686]
[1766560130757,0.01148963,87035.0,87025.0,0.01162686]
[1766560131117,0.01148949,87036.0,87025.0,0.01162686]
[1766560132462,0.01148963,87035.0,87025.0,0.01162686]
[1766560133062,0.01148949,87036.0,87025.0,0.02311781]
[1766560133271,0.01152,87037.0,87025.0,0.02311781]
[1766560134137,0.01152,87037.0,87027.0,0.01149068]
[1766560135273,0.02300936,87037.0,87026.0,0.01149081]
[1766560135639,0.01152,87037.0,87026.0,0.01149081]
[1766560135803,0.01152,87037.0,87027.0,0.01149068]
[1766560136722,0.02300936,87037.0,87026.0,0.01149081]
[1766560140348,0.01148949,87036.0,87025.0,0.02311781]
[1766560141050,0.49697193,87040.0,87025.0,0.02311781]
[1766560141051,0.0310116,87048.0,87032.0,0.12822]
[1766560141248,0.02481692,87056.0,87049.0,0.12822]
[1766560141452,0.0046,87055.0,87044.0,0.01148844]
[1766560141764,0.0046,87055.0,87042.0,0.06893169]
[1766560141765,0.01148699,87055.0,87042.0,0.06893169]
[1766560142153,0.01148712,87054.0,87043.0,0.01148857]
[1766560142356,0.01148699,87055.0,87044.0,0.01148844]
[1766560142651,0.04782377,87056.0,87045.0,0.01148831]
[1766560142652,0.03633692,87056.0,87045.0,0.01148831]
[1766560142848,0.02300685,87056.0,87045.0,0.01148831]
[1766560143074,0.01148699,87055.0,87044.0,0.01148844]
[1766560144569,0.01148699,87055.0,87043.0,0.01148857]
[1766560144980,0.04782377,87056.0,87046.0,0.12822]
[1766560145738,0.01152,87056.0,87046.0,0.13970817]
[1766560145947,0.01152,87056.0,87050.0,0.01148765]
[1766560146159,0.01152,87056.0,87053.0,0.01148725]
[1766560146515,0.01152,87056.0,87052.0,0.01148738]
[1766560147388,0.0115814,87056.0,87052.0,0.01148738]
[1766560148016,0.0115814,87056.0,87053.0,0.01148725]
[1766560148388,2.4e-06,87056.0,87053.0,0.13970725]
[1766560149834,2.4e-06,87056.0,87053.0,0.12822]
[1766560150766,2.4e-06,87056.0,87049.0,0.02300778]
[1766560150767,0.000549,87053.0,87049.0,0.02300778]
[1766560150902,2.4e-06,87056.0,87049.0,0.01152]
[1766560151103,2.4e-06,87056.0,87049.0,0.02300778]
[1766560151723,2.4e-06,87056.0,87050.0,0.01148765]
[1766560152370,2.4e-06,87056.0,87051.0,0.01148751]
[1766560152773,2.4e-06,87056.0,87050.0,0.01148765]
[1766560153383,2.4e-06,87056.0,87051.0,0.12822]
[1766560153908,2.4e-06,87056.0,87051.0,0.127671]
[1766560155922,2.4e-06,87056.0,87051.0,0.13915851]
[1766560156085,0.02300606,87062.0,87051.0,0.13915851]
[1766560156086,0.01152,87063.0,87051.0,0.13915851]
[1766560156913,0.01148606,87062.0,87051.0,0.127671]
[1766560157160,0.01148606,87062.0,87051.0,0.13915851]
[1766560157311,0.02300593,87063.0,87051.0,0.13915851]
[1766560158894,0.02300593,87063.0,87052.0,0.01148738]
[1766560159094,0.02300593,87063.0,87051.0,0.13915851]
[1766560160965,0.01152,87063.0,87053.0,0.12822]
[1766560161507,0.01152,87063.0,87055.0,0.13970699]
[1766560161666,0.01152,87066.0,87055.0,0.13970699]
[1766560161859,0.01148553,87066.0,87055.0,0.12822]
[1766560162205,0.02300553,87066.0,87055.0,0.13970699]
[1766560162569,0.01148567,87065.0,87055.0,0.12822]
[1766560164056,0.02300553,87066.0,87055.0,0.12822]
[1766560164268,0.01148567,87065.0,87055.0,0.12822]
[1766560164505,0.02300553,87066.0,87055.0,0.12822]
[1766560164654,0.01152,87066.0,87055.0,0.13970699]
[1766560165244,0.02300553,87066.0,87055.0,0.12822]
[1766560165834,0.01148567,87065.0,87055.0,0.12822]
[1766560166235,0.04778424,87066.0,87055.0,0.12822]
[1766560166544,0.02300553,87066.0,87055.0,0.12822]
[1766560166756,0.02300553,87066.0,87056.0,0.01152]
[1766560166968,0.01152,87066.0,87058.0,0.12822]
[1766560167152,0.01152,87066.0,87058.0,0.13970659]
[1766560167680,0.01152,87066.0,87058.0,0.12822]
[1766560169928,0.01152,87066.0,87058.0,0.13970659]
[1766560170267,0.02477871,87071.0,87066.0,0.000549]
[1766560170539,0.01152,87070.0,87066.0,0.126139]
[1766560170722,0.01152,87070.0,87066.0,0.12559]
[1766560172845,0.02300501,87070.0,87066.0,0.12559]
[1766560173851,0.01152,87070.0,87066.0,0.12559]
[1766560174262,0.01152,87070.0,87066.0,0.12504]
[1766560174817,0.02477871,87072.0,87066.0,0.12504]
[1766560175023,0.01152,87074.0,87072.0,0.000549]
[1766560175431,0.01152,87074.0,87066.0,0.12504]
[1766560177355,0.02477871,87077.0,87074.0,0.000549]
[1766560177553,0.01148395,87078.0,87075.0,0.13068]
[1766560177759,0.01148369,87080.0,87075.0,0.03068]
[1766560178142,0.01148382,87079.0,87075.0,0.03068]
[1766560179406,0.01148395,87078.0,87075.0,0.03068]
[1766560179644,0.05687058,87080.0,87075.0,0.03068]
[1766560180676,0.01148408,87077.0,87071.0,0.01152]
[1766560182052,0.06890267,87080.0,87071.0,0.01152]
[1766560182271,0.01148369,87080.0,87071.0,0.1422]
[1766560183352,0.01148382,87079.0,87071.0,0.1422]
[1766560183554,0.01148369,87080.0,87071.0,0.1422]
[1766560183975,0.01152,87081.0,87080.0,0.000549]
[1766560184178,0.01152,87081.0,87075.0,0.13068]
[1766560184179,0.0230029,87086.0,87077.0,0.13068]
[1766560184291,0.06889827,87085.0,87077.0,0.13068]
[1766560184493,0.01148316,87084.0,87077.0,0.13068]
[1766560186276,0.01148303,87085.0,87077.0,0.13068]
[1766560186437,0.01148303,87085.0,87077.0,0.03028001]
[1766560186876,0.01148303,87085.0,87077.0,1e-08]
[1766560187243,0.02310987,87086.0,87077.0,1e-08]
[1766560188761,0.01148316,87084.0,87077.0,1e-08]
[1766560189053,0.01148303,87085.0,87077.0,1e-08]
[1766560190964,0.02310987,87086.0,87077.0,1e-08]
[1766560191666,0.01148303,87085.0,87077.0,1e-08]
[1766560192069,0.02310987,87086.0,87077.0,1e-08]
[1766560192843,0.01148316,87084.0,87077.0,1e-08]
[1766560193055,0.01148329,87083.0,87077.0,1e-08]
[1766560193281,0.01148342,87082.0,87077.0,1e-08]
[1766560193469,0.01148329,87083.0,87077.0,1e-08]
[1766560194934,0.01148329,87083.0,87072.0,0.01148474]
[1766560195338,0.13292342,87082.0,87071.0,0.02300488]
[1766560195761,0.12144,87082.0,87071.0,0.02300488]
[1766560196265,0.12144,87082.0,87073.0,0.01148461]
[1766560196472,0.13292342,87082.0,87071.0,0.02300488]
[1766560196893,0.12144,87082.0,87072.0,0.01148474]
[1766560197842,0.13292342,87082.0,87071.0,0.02300488]
[1766560198055,0.19034064,87082.0,87071.0,0.01152]
[1766560198262,0.14717356,87081.0,87072.0,0.01152]
[1766560198495,0.01148369,87080.0,87072.0,0.01152]
[1766560198706,0.14717356,87081.0,87072.0,0.01152]
[1766560198926,0.13569,87081.0,87072.0,0.01152]
[1766560199089,0.13569,87081.0,87072.0,0.02300474]
[1766560199682,0.13569,87081.0,87073.0,0.01148461]
[1766560200890,0.13569,87081.0,87072.0,0.02300474]
[1766560201097,0.13569,87081.0,87072.0,0.01152]
[1766560201578,0.13569,87081.0,87072.0,0.02300474]
[1766560201991,0.13569,87081.0,87072.0,0.01152]
[1766560202411,0.14717356,87081.0,87072.0,0.01152]
[1766560203247,0.02480227,87080.0,87072.0,0.01152]
[1766560203795,0.01148382,87079.0,87072.0,0.01152]
[1766560204019,0.03628596,87080.0,87072.0,0.01152]
[1766560204233,0.02480227,87080.0,87072.0,0.01152]
[1766560206084,0.03628596,87080.0,87072.0,0.01152]
[1766560206475,0.02480227,87080.0,87072.0,0.01152]
[1766560208349,0.03628596,87080.0,87072.0,0.01152]
[1766560208774,0.02480227,87080.0,87072.0,0.01152]
[1766560209290,0.03628583,87081.0,87072.0,0.01152]
[1766560209687,0.14717356,87081.0,87072.0,0.01152]
[1766560209893,0.02480227,87080.0,87072.0,0.01152]
[1766560211267,0.01148382,87079.0,87072.0,0.01152]
[1766560212838,0.14717382,87079.0,87072.0,0.01152]
[1766560213146,0.02480227,87078.0,87072.0,0.01152]
[1766560213543,0.03628622,87078.0,87072.0,0.01152]
[1766560213758,0.01148435,87075.0,87072.0,0.01152]
[1766560214719,0.01148422,87076.0,87072.0,0.01152]
[1766560215287,0.01148435,87075.0,87072.0,0.01152]
[1766560215490,0.01148422,87076.0,87072.0,0.01152]
[1766560215636,0.01148435,87075.0,87072.0,0.01152]
[1766560216017,0.01148435,87075.0,87062.0,0.01148606]
[1766560216018,0.14717461,87073.0,87062.0,0.01148606]
[1766560216179,0.13569,87071.0,87061.0,0.01148619]
[1766560216383,0.13569,87071.0,87063.0,0.02300593]
[1766560216581,0.13569,87071.0,87064.0,0.0114858]
[1766560216806,0.13569,87071.0,87063.0,0.01152]
[1766560217751,0.13569,87071.0,87063.0,0.02300593]
[1766560218604,0.13569,87071.0,87064.0,0.0114858]
[1766560218806,0.135141,87071.0,87064.0,0.0114858]
[1766560219181,0.135141,87071.0,87066.0,0.01148553]
[1766560219382,0.00020545,87069.0,87066.0,0.01148553]
[1766560219582,4.5e-07,87069.0,87066.0,0.01148553]
[1766560225490,0.01152,87076.0,87064.0,0.0114858]
[1766560225696,0.02300422,87076.0,87065.0,0.01148567]
[1766560225899,0.01152,87076.0,87065.0,0.06891387]
[1766560226097,0.01152,87076.0,87067.0,0.0114854]
[1766560229337,0.01152,87076.0,87068.0,0.01148527]
[1766560229497,0.01152,87076.0,87067.0,0.0114854]
[1766560230898,0.01152,87076.0,87066.0,0.01148553]
[1766560231749,0.01152,87076.0,87067.0,0.0114854]
[1766560232093,0.01152,87076.0,87066.0,0.01148553]
[1766560232461,0.01152,87076.0,87067.0,0.0114854]
[1766560233078,0.01152,87076.0,87068.0,0.01148527]
[1766560233514,0.00029477,87076.0,87068.0,0.01148527]
[1766560234261,0.00029477,87076.0,87069.0,0.01148514]
[1766560234459,0.00029477,87076.0,87068.0,0.01148527]
[1766560235662,0.00029477,87076.0,87069.0,0.01148514]
[1766560235862,0.00029477,87076.0,87068.0,0.01148527]
[1766560236884,0.06890024,87083.0,87069.0,0.13517]
[1766560237085,0.01152,87080.0,87076.0,0.000294]
[1766560237502,0.01152,87080.0,87071.0,0.13517]
[1766560237881,0.02300369,87080.0,87071.0,0.13517]
[1766560238639,0.01152,87080.0,87071.0,0.13517]
[1766560238853,0.02300369,87080.0,87071.0,0.13517]
[1766560240744,0.01152,87080.0,87071.0,0.13517]
[1766560241135,0.02300369,87080.0,87071.0,0.13517]
[1766560241439,0.01152,87080.0,87071.0,0.13517]
[1766560241766,0.02300369,87080.0,87071.0,0.13517]
[1766560243281,0.01152,87080.0,87071.0,0.13517]
[1766560243479,0.02300369,87080.0,87071.0,0.13517]
[1766560244243,0.01152,87080.0,87071.0,0.13517]
[1766560244787,0.02300369,87080.0,87071.0,0.13517]
[1766560246161,0.01152,87080.0,87071.0,0.13517]
[1766560246383,0.02300369,87080.0,87071.0,0.13517]
[1766560247217,0.01148382,87079.0,87071.0,0.13517]
[1766560247742,0.04783109,87080.0,87071.0,0.13517]
[1766560247961,0.02300369,87080.0,87071.0,0.13517]
[1766560248164,0.0309904,87091.0,87080.0,0.000345]
[1766560248368,0.00025211,87096.0,87084.0,0.13517]
[1766560248643,0.00025211,87096.0,87086.0,0.1466529]
[1766560248811,0.00025211,87096.0,87087.0,0.01148277]
[1766560249189,0.00025211,87096.0,87086.0,0.1466529]
[1766560249596,0.00025211,87096.0,87088.0,0.01148263]
[1766560249818,0.00025211,87096.0,87090.0,0.01148237]
[1766560250036,0.00025211,87096.0,87086.0,0.1466529]
[1766560250889,0.00025211,87096.0,87087.0,0.01152]
[1766560251098,0.01173369,87096.0,87087.0,0.01152]
[1766560251426,0.00025211,87096.0,87087.0,0.01152]
[1766560252231,0.01173369,87096.0,87087.0,0.01152]
[1766560252388,0.00025211,87096.0,87087.0,0.01152]
[1766560253658,0.01173369,87096.0,87087.0,0.01152]
[1766560254418,0.00025211,87096.0,87087.0,0.01152]
[1766560255320,0.01173369,87096.0,87087.0,0.01152]
[1766560255543,0.00025211,87096.0,87087.0,0.01152]
[1766560255725,0.01173369,87096.0,87087.0,0.01152]
[1766560255927,0.01148171,87095.0,87087.0,0.011316]
[1766560256761,0.14528369,87096.0,87087.0,0.011316]
[1766560257266,0.13380211,87096.0,87087.0,0.011316]
[1766560257915,0.13380211,87096.0,87087.0,0.02279877]
[1766560258104,0.13380211,87096.0,87087.0,0.011316]
[1766560258526,0.14528369,87096.0,87087.0,0.011316]
[1766560258773,0.13380211,87096.0,87087.0,0.02279877]
[1766560259536,0.13380211,87096.0,87087.0,0.011316]
[1766560259741,0.14528369,87096.0,87087.0,0.011316]
[1766560260362,0.01148184,87094.0,87087.0,0.011316]
[1766560260542,0.01148171,87095.0,87087.0,0.011316]
[1766560260945,0.01148184,87094.0,87087.0,0.011316]
[1766560261212,0.01148171,87095.0,87087.0,0.011316]
[1766560261445,0.14528369,87096.0,87087.0,0.011316]
[1766560261615,0.01148171,87095.0,87087.0,0.011316]
[1766560262160,0.14528369,87096.0,87087.0,0.011316]
[1766560264483,0.01148184,87094.0,87086.0,0.13517]
[1766560264678,0.14526197,87093.0,87087.0,0.01152]
[1766560265202,0.13378,87093.0,87087.0,0.01152]
[1766560265579,0.14526197,87093.0,87087.0,0.01152]
[1766560267429,0.13378,87093.0,87087.0,0.01152]
[1766560267825,0.14526197,87093.0,87087.0,0.01152]
[1766560268027,0.13378,87093.0,87087.0,0.01152]
[1766560270082,0.13378,87093.0,87084.0,0.01148316]
[1766560270291,0.13378,87093.0,87085.0,0.01152]
[1766560273438,0.13378,87093.0,87085.0,0.02300303]
[1766560273911,0.13378,87093.0,87085.0,0.01152]
[1766560274852,0.13378,87093.0,87085.0,0.02300303]
[1766560275109,0.13378,87093.0,87085.0,0.01152]
[1766560276079,0.13378,87093.0,87085.0,0.02300303]
[1766560276277,0.13378,87093.0,87085.0,0.01152]
[1766560276684,0.13378,87093.0,87085.0,0.02300303]
[1766560277390,0.02482268,87092.0,87085.0,0.02300303]
[1766560278396,0.03655637,87096.0,87092.0,0.000549]
[1766560278587,0.01173369,87096.0,87092.0,0.000549]
[1766560278785,0.14526197,87093.0,87085.0,0.00983396]
[1766560279004,0.13378,87091.0,87085.0,0.00983396]
[1766560279743,0.00055,87085.0,87084.0,0.01148]
[1766560280066,0.13378,87091.0,87084.0,0.01148]
[1766560284160,0.13378,87091.0,87084.0,0.01093]
[1766560284562,0.14526224,87091.0,87084.0,0.01093]
[1766560285019,0.13378,87091.0,87084.0,0.01093]
[1766560287581,0.13378,87091.0,87084.0,0.02241316]
[1766560287816,0.133231,87091.0,87086.0,0.0114829]
[1766560288631,0.0004,87097.0,87087.0,0.01148277]
[1766560288922,0.02522748,87097.0,87086.0,0.1462529]
[1766560289694,0.14279211,87096.0,87086.0,0.13477]
[1766560289935,0.02482748,87095.0,87086.0,0.1462529]
[1766560290353,0.02482748,87095.0,87087.0,0.01148277]
[1766560291824,0.02482748,87095.0,87088.0,0.01148263]
[1766560292442,0.02427748,87095.0,87089.0,0.0114825]
[1766560292652,0.02427748,87095.0,87091.0,0.01148224]
[1766560292854,0.01494093,87095.0,87092.0,0.01148211]
[1766560293064,3.04e-06,87096.0,87093.0,0.00114526]
[1766560293274,3.04e-06,87096.0,87091.0,0.14625224]
[1766560293492,3.04e-06,87096.0,87091.0,0.13477]
[1766560297159,3.04e-06,87096.0,87091.0,0.134221]
[1766560297906,0.01148184,87094.0,87091.0,0.13378754]
[1766560298116,0.01148171,87095.0,87091.0,0.13378754]
[1766560298309,0.01148171,87095.0,87091.0,0.01148]
[1766560298892,3.04e-06,87096.0,87091.0,0.01148]
[1766560301107,0.14095,87093.0,87090.0,0.01148]
[1766560301314,0.01148184,87094.0,87085.0,5.1e-07]
[1766560301315,0.14095,87087.0,87085.0,5.1e-07]
[1766560301562,0.01148395,87078.0,87069.0,0.14328]
[1766560301798,0.15243408,87077.0,87070.0,0.01148]
[1766560302032,0.01148422,87076.0,87071.0,0.01148]
[1766560302247,0.14095,87077.0,87072.0,0.01148]
[1766560302949,0.01148422,87076.0,87072.0,0.01148]
[1766560303158,0.15243408,87077.0,87069.0,0.01148]
[1766560306704,0.01148422,87076.0,87069.0,0.01148]
[1766560306903,0.15243408,87077.0,87069.0,0.01148]
[1766560307836,0.01148422,87076.0,87069.0,0.01148]
[1766560307971,0.15243408,87077.0,87069.0,0.01148]
[1766560308367,0.14095,87077.0,87069.0,0.01148]
[1766560313099,0.15243408,87077.0,87069.0,0.01148]
[1766560314220,0.01148435,87075.0,87069.0,0.01148]
[1766560314682,0.01148435,87075.0,87069.0,0.01152]
[1766560314683,0.01148461,87073.0,87069.0,0.01152]
[1766560314874,0.01148448,87074.0,87069.0,0.01152]
[1766560315291,0.01148435,87075.0,87069.0,0.01152]
[1766560315490,0.01148448,87074.0,87069.0,0.01152]
[1766560316970,0.01148422,87076.0,87069.0,0.01152]
[1766560317171,0.14095,87077.0,87069.0,0.01152]
[1766560317650,0.15243408,87077.0,87069.0,0.01152]
[1766560320754,0.14095,87077.0,87069.0,0.01152]
[1766560320953,4.498e-05,87078.0,87069.0,0.17698]
[1766560321158,0.01152893,87078.0,87069.0,0.17698]
[1766560321507,4.498e-05,87078.0,87069.0,0.17698]
[1766560321719,0.01152893,87078.0,87069.0,0.17698]
[1766560322675,4.498e-05,87078.0,87069.0,0.17698]
[1766560322849,9.8e-07,87078.0,87071.0,0.17694488]
[1766560323030,9.8e-07,87078.0,87073.0,0.17694461]
[1766560323233,9.8e-07,87078.0,87073.0,0.16546]
[1766560323575,9.8e-07,87078.0,87073.0,0.17694461]
[1766560323777,9.8e-07,87078.0,87073.0,0.16546]
[1766560333218,9.8e-07,87078.0,87073.0,0.17694461]
[1766560333577,0.42169283,87083.0,87074.0,0.01148448]
[1766560334693,0.42169283,87083.0,87073.0,0.17694461]
[1766560334921,0.42169283,87083.0,87074.0,0.01148448]
[1766560336328,0.01152,87083.0,87074.0,0.01148448]
[1766560338216,0.01152,87083.0,87075.0,0.01148435]
[1766560339840,0.01152,87083.0,87076.0,0.01148422]
[1766560340062,0.01152,87083.0,87075.0,0.01148435]
[1766560340756,0.01152,87085.0,87083.0,0.000505]
[1766560341356,0.01152,87085.0,87078.0,0.16546]
[1766560341768,0.01152,87085.0,87078.0,0.17694395]
[1766560342081,0.01152,87085.0,87079.0,0.01148382]
[1766560342284,0.01152,87085.0,87078.0,0.17694395]
[1766560343806,0.01152,87085.0,87078.0,0.16546]
[1766560347473,0.01152,87085.0,87077.0,0.01148408]
[1766560349398,0.01152,87085.0,87078.0,0.01148395]
[1766560350043,0.01152,87085.0,87077.0,0.01148408]
[1766560351412,0.01152,87085.0,87076.0,0.07736282]
[1766560351608,0.01152,87085.0,87078.0,0.01148395]
[1766560352263,0.01152,87085.0,87079.0,0.01148382]
[1766560352453,0.011015,87085.0,87080.0,0.18094369]
[1766560352651,0.02482365,87089.0,87082.0,0.16946]
[1766560352852,0.18174,87097.0,87081.0,0.02414898]
[1766560352853,0.02482669,87096.0,87087.0,0.16946]
[1766560353080,0.01077533,87095.0,87087.0,0.16946]
[1766560353278,0.01077533,87095.0,87081.0,0.01152]
[1766560353279,0.01148211,87092.0,87081.0,0.01152]
[1766560353477,0.0114825,87089.0,87081.0,0.01152]
[1766560353680,0.01148224,87091.0,87081.0,0.01187648]